Workbook

Sheet 읍면동별 세대 및 인구
A1: 여수시 읍면동별 세대 및 인구
A2: 작성기준 : 2015.12.31. 현재 | J2: (단위 : 세대, 명)
A3: 구 분 | B3: 세대수1) | C3: 합 계 | F3: 한국인 | I3: 외국인
C4: 계 | D4: 남 | E4: 여 | F4: 계 | G4: 남 | H4: 여 | I4: 계 | J4: 남 | K4: 여
A5: 2010년말 | B5: 110,613 | C5: =I5+F5 -> 295,878 | D5: 148,455 | E5: 145,033 | F5: 293,488 | G5: 148,455 | H5: 145,033 | I5: 2,390 | J5: 1,430 | K5: 960
A6: 2011년말 | B6: 111,921 | C6: 295,538 | D6: 149,827 | E6: 145,711 | F6: 292,750 | G6: 148,115 | H6: 144,635 | I6: 2,788 | J6: 1,712 | K6: 1,076
A7: 2012년말 | B7: 112,907 | C7: 295,215 | D7: 149,735 | E7: 145,480 | F7: 292,217 | G7: 147,922 | H7: 144,295 | I7: 2,998 | J7: 1,813 | K7: 1,185
A8: 2013년말 | B8: 114,364 | C8: 294,565 | D8: 149,547 | E8: 145,018 | F8: 291,366 | G8: 147,539 | H8: 143,827 | I8: 3,199 | J8: 2,008 | K8: 1,191
A9: 2014년말 | B9: 116,100 | C9: 294,459 | D9: 149,725 | E9: 144,734 | F9: 290,900 | G9: 147,346 | H9: 143,554 | I9: 3,559 | J9: 2,379 | K9: 1,180
A10: 2015.1월 | B10: 116,501 | C10: 295,690 | D10: 150,362 | E10: 145,328 | F10: 292,121 | G10: 147,980 | H10: 144,141 | I10: 3,569 | J10: 2,382 | K10: 1,187
A11: 2015.2월 | B11: 116,591 | C11: 295,122 | D11: 150,182 | E11: 144,940 | F11: 291,522 | G11: 147,778 | H11: 143,744 | I11: 3,600 | J11: 2,404 | K11: 1,196
A12: 2015.3월 | B12: 116,702 | C12: 294,547 | D12: 149,991 | E12: 144,556 | F12: 290,957 | G12: 147,593 | H12: 143,364 | I12: 3,590 | J12: 2,398 | K12: 1,192
A13: 2015.4월 | B13: 116,766 | C13: 294,384 | D13: 149,895 | E13: 144,489 | F13: 290,818 | G13: 147,542 | H13: 143,276 | I13: 3,566 | J13: 2,353 | K13: 1,213
A14: 2015.5월 | B14: 116,880 | C14: 294,337 | D14: 149,867 | E14: 144,470 | F14: 290,734 | G14: 147,492 | H14: 143,242 | I14: 3,603 | J14: 2,375 | K14: 1,228
A15: 2015.6월 | B15: 116,998 | C15: 294,288 | D15: 149,817 | E15: 144,471 | F15: 290,638 | G15: 147,403 | H15: 143,235 | I15: 3,650 | J15: 2,414 | K15: 1,236
A16: 2015.7월 | B16: 116,962 | C16: 293,853 | D16: 149,593 | E16: 144,260 | F16: 290,143 | G16: 147,127 | H16: 143,016 | I16: 3,710 | J16: 2,466 | K16: 1,244
A17: 2015.8월 | B17: 117,006 | C17: 293,718 | D17: 149,499 | E17: 144,219 | F17: 289,954 | G17: 146,981 | H17: 142,973 | I17: 3,764 | J17: 2,518 | K17: 1,246
A18: 2015.9월 | B18: 117,223 | C18: 294,172 | D18: 149,754 | E18: 144,418 | F18: 290,326 | G18: 147,169 | H18: 143,157 | I18: 3,846 | J18: 2,585 | K18: 1,261
A19: 2015.10월 | B19: 117,390 | C19: 294,215 | D19: 149,801 | E19: 144,414 | F19: 290,336 | G19: 147,181 | H19: 143,155 | I19: 3,879 | J19: 2,620 | K19: 1,259
A20: 2015.11월 | B20: 117,564 | C20: 294,186 | D20: 149,795 | E20: 144,391 | F20: 290,307 | G20: 147,182 | H20: 143,125 | I20: 3,879 | J20: 2,613 | K20: 1,266
A21: 2015.12월 | B21: =SUM(B22:B48) -> 117,602 | C21: =D21+E21 -> 294,073 | D21: =SUM(D22:D48) -> 149,727 | E21: =SUM(E22:E48) -> 144,346 | F21: =G21+H21 -> 290,168 | G21: =SUM(G22:G48) -> 147,088 | H21: =SUM(H22:H48) -> 143,080 | I21: =J21+K21 -> 3,905 | J21: =SUM(J22:J48) -> 2,639 | K21: =SUM(K22:K48) -> 1,266
A22: 돌산읍 | B22: 6,362 | C22: =SUM(D22:E22) -> 14,947 | D22: =G22+J22 -> 7,784 | E22: =H22+K22 -> 7,163 | F22: =SUM(G22:H22) -> 14,347 | G22: 7,279 | H22: 7,068 | I22: =SUM(J22:K22) -> 600 | J22: 505 | K22: 95
A23: 소라면 | B23: 7,417 | C23: =SUM(D23:E23) -> 18,329 | D23: =G23+J23 -> 9,282 | E23: =H23+K23 -> 9,047 | F23: =SUM(G23:H23) -> 18,207 | G23: 9,248 | H23: 8,959 | I23: =SUM(J23:K23) -> 122 | J23: 34 | K23: 88
A24: 율촌면 | B24: 3,345 | C24: 7,271 | D24: =G24+J24 -> 3,734 | E24: 3,537 | F24: 7,063 | G24: 3,590 | H24: 3,473 | I24: 208 | J24: 144 | K24: 64
A25: 화양면 | B25: 3,396 | C25: 7,232 | D25: 3,771 | E25: 3,461 | F25: 7,005 | G25: 3,597 | H25: 3,408 | I25: 227 | J25: 174 | K25: 53
A26: 남면 | B26: 1,769 | C26: 3,387 | D26: 1,738 | E26: 1,649 | F26: =SUM(G26:H26) -> 3,307 | G26: 1,670 | H26: 1,637 | I26: 80 | J26: 68 | K26: 12
A27: 화정면 | B27: 1,308 | C27: 2,479 | D27: 1,213 | E27: 1,266 | F27: 2,428 | G27: 1,172 | H27: 1,256 | I27: 51 | J27: 41 | K27: 10
A28: 삼산면 | B28: 1,258 | C28: 2,477 | D28: 1,393 | E28: 1,084 | F28: 2,398 | G28: 1,323 | H28: 1,075 | I28: 79 | J28: 70 | K28: 9
A29: 동문동 | B29: 2,441 | C29: 4,843 | D29: 2,470 | E29: 2,373 | F29: 4,781 | G29: 2,431 | H29: 2,350 | I29: 62 | J29: 39 | K29: 23
A30: 한려동 | B30: 1,719 | C30: 3,451 | D30: 1,731 | E30: 1,720 | F30: 3,425 | G30: 1,718 | H30: 1,707 | I30: 26 | J30: 13 | K30: 13
A31: 중앙동 | B31: 2,563 | C31: 5,580 | D31: 2,816 | E31: 2,764 | F31: 5,487 | G31: 2,748 | H31: 2,739 | I31: 93 | J31: 68 | K31: 25
A32: 충무동 | B32: 2,358 | C32: 4,822 | D32: 2,492 | E32: 2,330 | F32: 4,775 | G32: 2,465 | H32: 2,310 | I32: 47 | J32: 27 | K32: 20
A33: 광림동 | B33: 3,330 | C33: 7,250 | D33: 3,729 | E33: 3,521 | F33: 7,195 | G33: 3,712 | H33: 3,483 | I33: 55 | J33: 17 | K33: 38
A34: 서강동 | B34: 1,977 | C34: 4,417 | D34: 2,196 | E34: 2,221 | F34: 4,380 | G34: 2,181 | H34: 2,199 | I34: 37 | J34: 15 | K34: 22
A35: 대교동 | B35: 3,195 | C35: 6,536 | D35: 3,458 | E35: 3,078 | F35: 6,263 | G35: 3,220 | H35: 3,043 | I35: 273 | J35: 238 | K35: 35
A36: 국동 | B36: 5,490 | C36: 13,496 | D36: 6,945 | E36: 6,551 | F36: 13,181 | G36: 6,684 | H36: 6,497 | I36: 315 | J36: 261 | K36: 54
A37: 월호동 | B37: 2,906 | C37: 8,129 | D37: 4,165 | E37: 3,964 | F37: 7,886 | G37: 3,934 | H37: 3,952 | I37: 243 | J37: 231 | K37: 12
A38: 여서동 | B38: 7,893 | C38: 21,767 | D38: 10,821 | E38: 10,946 | F38: 21,616 | G38: 10,743 | H38: 10,873 | I38: 151 | J38: 78 | K38: 73
A39: 문수동 | B39: 8,681 | C39: 22,513 | D39: 11,272 | E39: 11,241 | F39: 22,280 | G39: 11,138 | H39: 11,142 | I39: 233 | J39: 134 | K39: 99
A40: 미평동 | B40: 5,545 | C40: 13,325 | D40: 6,900 | E40: 6,425 | F40: 13,220 | G40: 6,857 | H40: 6,363 | I40: 105 | J40: 43 | K40: 62
A41: 둔덕동 | B41: 3,893 | C41: 11,246 | D41: 5,614 | E41: 5,632 | F41: 11,162 | G41: 5,577 | H41: 5,585 | I41: 84 | J41: 37 | K41: 47
A42: 만덕동 | B42: 3,691 | C42: 9,577 | D42: 4,823 | E42: 4,754 | F42: 9,429 | G42: 4,732 | H42: 4,697 | I42: 148 | J42: 91 | K42: 57
A43: 쌍봉동 | B43: 13,244 | C43: 36,529 | D43: 18,593 | E43: 17,936 | F43: 36,325 | G43: 18,498 | H43: 17,827 | I43: 204 | J43: 95 | K43: 109
A44: 시전동 | B44: 9,912 | C44: 28,473 | D44: 14,195 | E44: 14,278 | F44: 28,332 | G44: 14,150 | H44: 14,182 | I44: 141 | J44: 45 | K44: 96
A45: 여천동 | B45: 9,176 | C45: 23,333 | D45: 12,012 | E45: 11,321 | F45: 23,182 | G45: 11,955 | H45: 11,227 | I45: 151 | J45: 57 | K45: 94
A46: 주삼동 | B46: 2,865 | C46: 8,360 | D46: 4,263 | E46: 4,097 | F46: 8,312 | G46: 4,247 | H46: 4,065 | I46: 48 | J46: 16 | K46: 32
A47: 삼일동 | B47: 1,290 | C47: 3,016 | D47: 1,640 | E47: 1,376 | F47: 2,902 | G47: 1,542 | H47: 1,360 | I47: 114 | J47: 98 | K47: 16
A48: 묘도동 | B48: 578 | C48: 1,288 | D48: 677 | E48: 611 | F48: 1,280 | G48: 677 | H48: 603 | I48: 8 | J48: 0 | K48: 8
A49: 자료 : 민원지적과
A50: 주 : 1) 세대수에는 외국인 세대 제외

Sheet 65세이상 인구(총괄)
A1: 65세이상 인구 현황(총괄)
A2: 작성기준 : 2015.12.31. 현재 | D2: (단위 : 명)
A3: 구 분 | B3: 계 | C3: 남 | D3: 여 | E3: 노령화 지수
A4: 2010년말 | B4: 36,601 | C4: 14,376 | D4: 22,225 | E4: 76.5
A5: 2011년말 | B5: 37,830 | C5: 15,023 | D5: 22,807 | E5: 82.0
A6: 2012년말 | B6: 39,671 | C6: 15,929 | D6: 23,742 | E6: 89.4
A7: 2013년말 | B7: 41,369 | C7: 16,775 | D7: 24,594 | E7: 96.8
A8: 2014년말 | B8: 43,225 | C8: 17,752 | D8: 25,473 | E8: 105.4
A9: 2015. 1월 | B9: 43,476 | C9: 17,885 | D9: 25,591 | E9: 106.2
A10: 2015. 2월 | B10: 43,593 | C10: 17,958 | D10: 25,635 | E10: 107.2
A11: 2015. 3월 | B11: 43,696 | C11: 18,034 | D11: 25,662 | E11: 107.9
A12: 2015. 4월 | B12: 43,809 | C12: 18,117 | D12: 25,692 | E12: 108.4
A13: 2015. 5월 | B13: 44,001 | C13: 18,217 | D13: 25,784 | E13: 109.2
A14: 2015. 6월 | B14: 44,142 | C14: 18,289 | D14: 25,853 | E14: 109.9
A15: 2015. 7월 | B15: 44,277 | C15: 18,381 | D15: 25,896 | E15: 110.7
A16: 2015. 8월 | B16: 44,430 | C16: 18,458 | D16: 25,972 | E16: 111.5
A17: 2015. 9월 | B17: 44,599 | C17: 18,538 | D17: 26,061 | E17: 112.2
A18: 2015. 10월 | B18: 44,727 | C18: 18,615 | D18: 26,112 | E18: 113.0
A19: 2015. 11월 | B19: 44,844 | C19: 18,677 | D19: 26,167 | E19: 113.0
A20: 2015. 12월 | B20: 44,997 | C20: 18,775 | D20: 26,222 | E20: 114.3
A21: 자료 : 민원지적과
A22: 주 : 노령화 지수 = (65세이상인구 / 0~14세 인구) * 100
